[Event "CZE-ch U16 Open 2023"]
[Site "Teplice"]
[Date "2023.03.13"]
[Round "4.4"]
[White "Lang, Simon"]
[Black "Tillmann, Stanislav"]
[Result "1-0"]
[ECO "B85"]
[WhiteElo "1974"]
[BlackElo "1907"]
[Annotator "TA"]
[PlyCount "46"]
[EventDate "2023.03.09"]
[EventType "swiss"]
[EventCountry "CZE"]
[SourceTitle "playchess.com"]
[Source "ChessBase"]
[SourceQuality "1"]
[TimeControl "40/5400+30:1800+30"]

{[%evp 24,46,0,-22,-22,-25,-19,-14,-6,-20,-21,0,8,9,14,17,190,185,147,-18,50,50,384,401,896]} 1. e4 {[%emt 0:00:33]} c5 {[%emt 0:00:16]} 2. Nf3 {[%emt 0:00:44]} e6 {[%emt 0:00:10]} 3. d4 {[%emt 0:00:53]} cxd4 {[%emt 0:00:04]} 4. Nxd4 {[%emt 0:00:38]} a6 {[%emt 0:00:07]} 5. Nc3 {[%emt 0:01:16]} Qc7 {[%emt 0:00:12]} 6. Be2 {[%emt 0:03:13]} Nf6 {[%emt 0:02:25]} 7. O-O {[%emt 0:03:38]} d6 {[%emt 0:01:59]} 8. Be3 {[%emt 0:01:18]} Be7 {[%emt 0:00:58]} 9. f4 {[%emt 0:01:32]} Nbd7 {[%emt 0:02:08]} 10. Qe1 {[%emt 0:02:36]} b5 {[%emt 0:03:48]} 11. a3 {[%emt 0:01:37]} Bb7 {[%emt 0:01:43]} 12. Bf3 {[%emt 0:03:35]} O-O {[%emt 0:05:31]} 13. Qg3 {[%emt 0:04:47]} Nb6 {[%emt 0:05:09] B84: Sicilian Scheveningen: 6 Be2 a6, lines without early Be3.} 14. e5 {[%emt 0:16:36]} Nfd5 {[%emt 0:07:32] [#]} 15. Bxd5 $146 {[%emt 0:13:24]} ({Predecessor:} 15. Nxd5 Nxd5 16. Bd2 dxe5 17. fxe5 Bc5 18. c3 Ne7 19. Bxb7 Qxb7 20. Be3 Rad8 21. Kh1 Bxd4 22. Bxd4 {½-½ De Oliveira,M (2574)-Acevedo Villalba,A (2524) LIPEAP jub30-A corr 2002}) 15... Nxd5 {[%emt 0:01:11] The position is equal.} 16. Nxd5 {[%emt 0:01:54]} Bxd5 {[%emt 0:01:04]} 17. f5 {[%emt 0:01:22]} dxe5 {[%emt 0:10:16] And now ...Kh8 would win.} 18. f6 {[%emt 0:02:42]} Bxf6 {[%emt 0:00:13]} 19. Rxf6 $40 {[%emt 0:01:51][%mdl 128] Strongly threatening Bh6. White is up to no good.} Qe7 $2 {[%emt 0:00:05] [#]} (19... Kh8 $1 $11 {and Black is okay.} 20. Rf2 f5) 20. Raf1 $1 $18 {[%emt 0:03:17][%cal Oe3h6] Bh6! is the strong threat.} exd4 {[%emt 0:00:34]} 21. Bxd4 {[%emt 0:00:20]} (21. Bh6 $16 {[%csl Gh6][%cal Rg3g7]} g6 22. Qe5) 21... Rae8 {[%emt 0:06:32] Black is weak on the dark squares} ({Much less strong is} 21... e5 22. Bxe5 g6 23. Bc3 $14) (21... Bc4 $1 $11 22. Re1 Rad8) 22. Be5 $14 {[%emt 0:10:57][%mdl 1024] h4 would be deadly. White has compensation.} Kh8 $2 {[%emt 0:05:36][%mdl 8192]} (22... Qc5+ $14 23. R6f2 f6) 23. h4 $18 {[%cal Oh4h5] h5! would kill now.} Kg8 {Weighted Error Value: White=0.19 (very precise) /Black=1.09} (23... Be4 $142 24. h5 Bg6) 1-0

[Event "CZE-ch U16 Open 2023"]
[Site "Teplice"]
[Date "2023.03.13"]
[Round "4.5"]
[White "Kubin, Tomas Daniel"]
[Black "Hladky, Tadeas"]
[Result "1-0"]
[ECO "B03"]
[WhiteElo "1936"]
[BlackElo "1973"]
[Annotator "TA"]
[PlyCount "71"]
[EventDate "2023.03.09"]
[EventType "swiss"]
[EventCountry "CZE"]
[SourceTitle "playchess.com"]
[Source "ChessBase"]
[SourceQuality "1"]
[TimeControl "40/5400+30:1800+30"]

{[%evp 21,71,67,72,41,43,3,3,0,0,-63,-59,-53,-46,-58,-31,-33,-28,-29,-26,-33,-41,-37,-39,-48,-20,-52,-17,-18,-19,-19,-18,-14,0,-58,-3,-3,-3,-4,-7,-105,-105,-112,-31,-20,5222,5206,29989,29990,29990,29991,29991,29992]} 1. e4 {[%emt 0:00:05][%cal Be2e4,Be4e5][%mdl 32]} Nf6 {[%emt 0:05:00]} 2. e5 {[%emt 0:00:23]} Nd5 {[%emt 0:00:05]} 3. c4 {[%emt 0:00:22]} Nb6 {[%emt 0:00:14]} 4. d4 {[%emt 0:00:10]} d6 {[%emt 0:00:03]} 5. exd6 {[%emt 0:00:21]} cxd6 {[%emt 0:00:05]} 6. Nc3 {[%emt 0:00:45]} g6 {[%emt 0:00:05]} 7. Be3 {[%emt 0:00:54]} Bg7 {[%emt 0:00:05]} 8. Rc1 {[%emt 0:01:11]} O-O {[%emt 0:00:08]} 9. b3 {[%emt 0:00:39]} Nc6 {[%emt 0:00:15]} 10. d5 {[%emt 0:01:36]} Ne5 {[%emt 0:00:08]} 11. Be2 {[%emt 0:00:47]} h5 {[%emt 0:01:17]} 12. h3 {[%emt 0:01:46] B03: Alekhine's Defence: Four Pawns Attack.} e6 {[%emt 0:00:08]} 13. dxe6 {[%emt 0:10:21]} Bxe6 {[%emt 0:00:17]} 14. Nf3 {[%emt 0:00:42] The position is equal.} d5 {[%emt 0:17:58]} 15. c5 {[%emt 0:11:44]} (15. cxd5 $11 Nxd5 16. Nxd5 Qa5+ 17. Qd2 Qxd2+ {[%mdl 64] Remove Defender} 18. Nxd2 Bxd5 19. O-O) 15... Nxf3+ $15 {[%emt 0:02:43]} 16. Bxf3 {[%emt 0:01:18]} d4 $1 {[%emt 0:00:44] [#]} 17. Bxd4 $146 {[%emt 0:08:25]} ({Predecessor:} 17. cxb6 dxe3 18. Qxd8 exf2+ 19. Kxf2 Rfxd8 20. Bxb7 Bd4+ 21. Ke2 Rab8 22. Bf3 Rxb6 23. Rhd1 {1-0 Draghici Flutur,G (2038)-Menendez Solar,J (1965) Calpe op 2004 (2)}) 17... Bxd4 {[%emt 0:02:49]} 18. cxb6 {[%emt 0:00:23]} Qxb6 {[%emt 0:03:24]} 19. O-O {[%emt 0:01:35] White is weak on the dark squares} Rad8 {[%emt 0:08:17]} 20. Qe2 {[%emt 0:05:25]} Qa5 {[%emt 0:02:45]} 21. Ne4 {[%emt 0:04:28]} Rfe8 {[%emt 0:05:07]} 22. Rfd1 {[%emt 0:09:40][%cal Od1d4]} Qe5 {[%emt 0:06:22]} 23. Ng3 {[%emt 0:10:46]} Qg5 {[%emt 0:13:11] [#] ...Bd5 is the strong threat.} (23... Qxg3 24. Rxd4 Qb8 25. Rxd8 Rxd8 26. Qe3 $11) (23... b6 {simplifies} 24. Qxe5 Bxe5 25. Nf1 Bf4) 24. Ne4 {[%emt 0:06:16]} Qf4 {[%emt 0:02:06] ...Bf5 would be deadly.} (24... Bxh3 $2 25. Nxg5 Rxe2 26. Bxe2 $18) 25. Qd2 {[%emt 0:03:19]} Qh4 {[%emt 0:08:47]} 26. Qh6 {[%emt 0:04:28]} Bf5 {[%emt 0:18:04] A strong pair of Bishops.} 27. Ng3 {[%emt 0:04:34]} (27. Rxd4 $1 $11 Bxe4 28. Qe3 Rxd4 29. Qxd4) 27... Bxh3 {[%emt 0:02:43]} ({Of course not} 27... Qxg3 28. Rxd4 (28. Bxb7 Bxf2+ 29. Kh1 Rxd1+ 30. Rxd1 Bxh3) 28... Qb8 29. Rf4 $11) (27... Bd3 28. Rxd3 Bxf2+ 29. Kxf2 $11) (27... Bc8 $15) 28. Rxd4 $11 {[%emt 0:01:27]} Rxd4 {[%emt 0:00:03]} 29. gxh3 $40 {[%emt 0:00:18][%mdl 128] Black needs to defend precisely.} Qxh3 {[%emt 0:00:22]} 30. Bg2 {[%emt 0:06:47]} (30. Bxb7 $11 Qg4 31. Bg2) 30... Qg4 $17 {[%emt 0:00:51]} 31. Nf1 {[%emt 0:02:49]} Qe2 {[%emt 0:01:07]} ({Better is} 31... Rf4 $17 {[%cal Of4f2] Hoping for ...Rxf2!} 32. Rc2 b5) 32. Ne3 $15 {[%emt 0:00:58]} Qxa2 $2 {[%emt 0:00:42][%mdl 8192] [#] Loses the game.} (32... Qb5 $11) 33. Bd5 {[%emt 0:00:59]} Qa5 {[%emt 0:00:23]} 34. Qxg6+ {[%emt 0:00:24] White mates.} ({Stronger than} 34. Bxb7 Qd2 35. Rc6 Qe1+ 36. Kg2 Qb1 $17) 34... Kh8 {[%emt 0:00:02]} 35. Qf6+ {[%emt 0:00:27]} Kh7 {[%emt 0:00:34]} 36. Qxf7+ {[%emt 0:00:51] A superb game by Kubin.   Weighted Error Value: White=0.20 (precise) /Black=0.35} 1-0

[Event "CZE-ch U16 Open 2023"]
[Site "Teplice"]
[Date "2023.03.13"]
[Round "4.6"]
[White "Werner, Hong Quan Dan"]
[Black "Pelc, Adam"]
[Result "1-0"]
[ECO "C00"]
[WhiteElo "2085"]
[BlackElo "1871"]
[Annotator "TA"]
[PlyCount "43"]
[EventDate "2023.03.09"]
[EventType "swiss"]
[EventCountry "CZE"]
[SourceTitle "playchess.com"]
[Source "ChessBase"]
[SourceQuality "1"]
[TimeControl "40/5400+30:1800+30"]

{[%evp 12,42,74,61,80,84,91,90,91,91,216,221,261,253,260,194,432,410,627,544,670,578,929,898,925,891,864,859,1306,1084,29998,29999,29999]} 1. e4 {[%emt 0:00:03] Golod,Vitali} e6 {[%emt 0:00:19]} 2. d4 {[%emt 0:00:39]} b6 {[%emt 0:00:45]} 3. Bd3 {[%emt 0:03:35]} Bb7 {[%emt 0:00:27]} 4. c4 {[%emt 0:01:56]} Bb4+ {[%emt 0:07:12]} 5. Nc3 {[%emt 0:01:32]} Nf6 {[%emt 0:02:34]} 6. Qc2 {[%emt 0:01:35]} c5 {[%emt 0:05:39]} 7. d5 {[%emt 0:03:44]} exd5 {[%emt 0:06:04] E32: Nimzo-Indian: Classical (4 Qc2): 4...0-0.} 8. exd5 {[%emt 0:00:08]} b5 {[%emt 0:04:50]} 9. b3 {[%emt 0:02:03]} bxc4 {[%emt 0:05:44] White is better.} 10. bxc4 {[%emt 0:00:16] [#]} Qe7+ $146 {[%emt 0:11:20]} (10... O-O $16 {keeps fighting.}) ({Predecessor:} 10... O-O 11. Nge2 d6 12. Bf4 h6 13. O-O Nh5 14. Bd2 Nd7 15. f4 Nb6 16. g4 Nf6 {1-0 Ivanov,S (2557)-Novikov,M (2401) St Petersburg-ch 2003 (1)}) 11. Nge2 $18 {[%emt 0:00:25]} Bxc3+ {[%emt 0:06:06]} 12. Qxc3 {[%emt 0:00:04]} O-O {[%emt 0:00:36]} 13. Bb2 {[%emt 0:05:48] 0-0 is the strong threat.} Ne8 $2 {[%emt 0:06:30]} (13... d6 14. O-O Re8) 14. O-O {[%emt 0:00:48]} f5 {[%emt 0:01:16]} (14... d6 $142 15. Ng3 Bc8) 15. Rae1 {[%emt 0:00:40][%cal Ba1e1,Be1e7,Be7e8][%mdl 32] [#] Ng3 would be deadly.} Qg5 {[%emt 0:03:41]} 16. f4 {[%emt 0:01:01]} Qg6 {[%emt 0:03:00]} 17. Ng3 {[%emt 0:01:43] And now Nxf5 would win.} Nd6 {[%emt 0:02:21]} 18. Re7 {[%emt 0:01:34][%cal Re7g7]} Rf7 {[%emt 0:01:45] [#]} 19. Nxf5 $1 {[%emt 0:11:42][%mdl 576] Deflection} Nxf5 {[%emt 0:01:44]} (19... Qxf5 20. Bxf5) 20. Bxf5 {[%emt 0:01:07]} Qxf5 {[%emt 0:00:11]} 21. Re8+ {[%emt 0:00:06]} Rf8 {[%emt 0:00:05]} 22. Qxg7# {[%emt 0:00:04] Black got outplayed after the opening. Excellently played by Werner!   Weighted Error Value: White=0.33/Black=1.33} 1-0

[Event "CZE-ch U16 Open 2023"]
[Site "Teplice"]
[Date "2023.03.13"]
[Round "4.7"]
[White "Mametev, Artem"]
[Black "Vilimek, Vit"]
[Result "1/2-1/2"]
[ECO "B12"]
[WhiteElo "2074"]
[BlackElo "2018"]
[Annotator "TA"]
[PlyCount "88"]
[EventDate "2023.03.09"]
[EventType "swiss"]
[EventCountry "CZE"]
[SourceTitle "playchess.com"]
[Source "ChessBase"]
[SourceQuality "1"]
[TimeControl "40/5400+30:1800+30"]

{[%evp 9,88,5,9,11,51,-1,10,0,0,0,0,-7,0,-34,-37,-50,-4,-11,-4,-17,0,-4,-7,-35,-56,-51,-30,-37,-39,-27,-27,-89,-95,-124,-129,-109,-13,-53,-31,-59,-33,-75,-59,-70,-8,-7,-7,-8,-7,-7,-7,-8,-8,-8,-8,-8,-8,-8,0,-12,0,0,0,0,0,0,0,0,0,0,8,0,0,0,0,0,0,0,0,0,766]} 1. e4 {[%emt 0:00:02]} c6 {[%emt 0:00:01]} 2. d4 {[%emt 0:00:08][%cal Bd2d4,Bd4c5][%mdl 32]} d5 {[%emt 0:00:02]} 3. e5 {[%emt 0:00:03]} c5 {[%emt 0:00:05]} 4. dxc5 {[%emt 0:00:12]} e6 {[%emt 0:00:02]} 5. Be3 {[%emt 0:00:12]} Nd7 {[%emt 0:00:06]} 6. Nf3 {[%emt 0:00:58] B12: Caro-Kann: Advance Variation.} Ne7 {[%emt 0:01:01]} 7. c3 {[%emt 0:18:22]} (7. c4 $14) 7... Nc6 {[%emt 0:01:46][%csl LRc5,LRe5]} 8. Bb5 {[%emt 0:01:54]} Bxc5 {[%emt 0:00:32]} 9. Bxc5 {[%emt 0:00:40]} Nxc5 {[%emt 0:00:01]} 10. O-O {[%emt 0:02:41]} Qb6 {[%emt 0:02:36] [#]} 11. Bxc6+ $146 {[%emt 0:03:21]} ({Predecessor:} 11. a4 O-O 12. Nbd2 a5 13. Qe2 Na7 14. b4 Nd7 15. Bd3 h6 16. b5 Nc5 17. Bc2 {0-1 Kovchan,A (2536)-Kornev,A (2558) Serpukhov-A 2003 (9)}) 11... bxc6 {[%emt 0:00:10]} 12. b4 {[%emt 0:03:05]} Ne4 {[%emt 0:04:16]} (12... Nd7 $15) 13. Nfd2 $11 {[%emt 0:01:28]} Nxd2 {[%emt 0:00:36]} ({Don't play} 13... Ba6 14. Nxe4 dxe4 15. Re1 $14) 14. Nxd2 {[%emt 0:00:28]} c5 {[%emt 0:05:01]} 15. Qg4 {[%emt 0:01:43]} O-O {[%emt 0:00:58]} 16. bxc5 {[%emt 0:03:55]} Qxc5 {[%emt 0:00:49]} 17. Qd4 {[%emt 0:00:04]} Qa5 {[%emt 0:05:11]} 18. Nb3 {[%emt 0:00:44]} Qc7 19. Nc5 {[%emt 0:08:03]} a5 {[%emt 0:23:15]} 20. f4 {[%emt 0:03:54]} (20. Rfc1 $11) 20... Ba6 $17 {[%emt 0:07:02]} 21. Nxa6 {[%emt 0:03:14]} Rxa6 {[%emt 0:00:02]} 22. f5 {[%emt 0:05:00]} Qa7 {[%emt 0:26:49]} (22... Rc8 $17 23. f6 Rc6) 23. fxe6 {[%emt 0:03:47]} fxe6 {[%emt 0:01:36]} 24. Rxf8+ {[%emt 0:00:12]} Kxf8 {[%emt 0:00:02]} 25. Rb1 {[%emt 0:01:40] [#]} Qxd4+ $1 {[%emt 0:00:21]} 26. cxd4 {[%emt 0:00:01][%mdl 4096] Endgame KR-KR} Kf7 {[%emt 0:00:09]} ({Better is} 26... Rc6 $15) 27. Rb7+ {[%emt 0:10:52] The position is equal.} Kg6 {[%emt 0:00:09]} 28. Re7 {[%emt 0:00:26]} Rc6 {[%emt 0:02:29]} 29. g4 {[%emt 0:00:25]} Rc4 {[%emt 0:11:31]} 30. Rxe6+ {[%emt 0:00:40]} Kf7 {[%emt 0:00:01]} 31. Rd6 {[%emt 0:03:14]} Rxd4 {[%emt 0:00:02]} 32. h3 {[%emt 0:00:07]} Rd2 {[%emt 0:01:33]} 33. a4 {[%emt 0:01:37]} h6 {[%emt 0:01:25]} 34. Kf1 {[%emt 0:00:55]} Rh2 {[%emt 0:05:45]} 35. Rxd5 {[%emt 0:00:18]} Rxh3 {[%emt 0:00:05]} 36. Kg2 {[%emt 0:00:34]} Re3 {[%emt 0:00:33]} 37. Rxa5 {[%emt 0:00:14]} Ke6 {[%emt 0:01:05]} 38. Ra7 {[%emt 0:01:04]} Rxe5 {[%emt 0:01:11]} 39. Rxg7 {[%emt 0:02:18]} Re4 {[%emt 0:00:02]} 40. a5 {[%emt 0:00:28]} Kf6 {[%emt 0:00:08] Dodges Rg6+} 41. Kf3 {[%emt 0:30:27]} Ra4 {[%emt 0:30:07]} 42. Ra7 {[%emt 0:00:34]} Ra3+ {[%emt 0:00:08]} 43. Kf4 {[%emt 0:01:12] [#] aiming for Ra6+.} Ra4+ {[%emt 0:00:04]} 44. Kg3 {[%emt 0:00:13]} Ke5 $2 {[%mdl 40960] Weighted Error Value: White=0.10 (very precise) /Black=0.13 (very precise) . An unexpected result.} (44... Kg5 $11) 1/2-1/2

[Event "CZE-ch U16 Open 2023"]
[Site "Teplice"]
[Date "2023.03.13"]
[Round "4.8"]
[White "Dolensky, Filip"]
[Black "Slaby, Matej"]
[Result "1-0"]
[ECO "B13"]
[WhiteElo "2108"]
[BlackElo "1932"]
[Annotator "TA"]
[PlyCount "107"]
[EventDate "2023.03.09"]
[EventType "swiss"]
[EventCountry "CZE"]
[SourceTitle "playchess.com"]
[Source "ChessBase"]
[SourceQuality "1"]
[TimeControl "40/5400+30:1800+30"]

{[%evp 14,107,45,49,93,79,80,62,116,83,120,110,140,64,112,117,127,102,166,169,172,172,172,175,164,131,129,117,150,93,102,49,33,14,79,46,35,46,84,96,94,64,120,61,66,0,0,-32,-27,-81,-77,-97,8,8,8,8,20,20,20,0,0,0,0,0,0,0,40,24,39,3,66,53,158,158,189,189,338,332,325,288,362,350,356,350,344,319,358,284,678,656,915,822,596,592,704,688]} 1. e4 {[%emt 0:00:03]} c6 {[%emt 0:00:07]} 2. d4 {[%emt 0:00:22]} d5 {[%emt 0:00:07]} 3. exd5 {[%emt 0:00:06]} cxd5 {[%emt 0:00:07]} 4. Bd3 {[%emt 0:00:07]} Nc6 {[%emt 0:00:25]} 5. c3 {[%emt 0:00:06]} Nf6 {[%emt 0:00:10]} 6. Bf4 {[%emt 0:00:30]} Qb6 {[%emt 0:02:08]} 7. Qb3 $1 {[%emt 0:00:43] The main line 7.Qb3 scores better than 7.Qc2.} Qxb3 {[%emt 0:00:51]} 8. axb3 {[%emt 0:00:28]} Bg4 {[%emt 0:00:18] B13: Caro-Kann: Exchange Variation and Panov-Botvinnik Attack.} 9. Nd2 {[%emt 0:00:43]} e6 {[%emt 0:00:19]} 10. b4 {[%emt 0:01:50]} Nd7 {[%emt 0:08:33]} (10... Nh5 $14 11. Bg3 g6) 11. Ngf3 {[%emt 0:07:09]} Be7 {[%emt 0:06:20]} 12. O-O {[%emt 0:01:12]} O-O {[%emt 0:00:15] [#]} 13. Ra2 $146 {[%emt 0:01:20]} (13. b5 $16 Nd8 14. Rfe1) ({Predecessor:} 13. b5 Nd8 14. Ne5 Nxe5 15. dxe5 Bc5 16. b4 Bb6 17. c4 dxc4 18. Nxc4 Bd4 19. Rac1 {1-0 Castellanos Rodriguez,C (1821)-Nino Perez,D (1982) Tercer Piso op 2015 (1)}) 13... f6 {[%emt 0:06:00]} (13... a6 $14 {should be considered.}) 14. b5 $16 {[%emt 0:07:17]} Nd8 {[%emt 0:00:18][%cal Oe6e5]} 15. h3 {[%emt 0:01:17]} Bxf3 {[%emt 0:05:22]} (15... Bf5 $16 16. Bxf5 exf5) 16. Nxf3 $18 {[%emt 0:01:05]} (16. gxf3 $6 e5 $14) 16... Nf7 {[%emt 0:00:15]} 17. Re1 {[%emt 0:01:13]} e5 {[%emt 0:07:36] Black is weak on the light squares} 18. dxe5 {[%emt 0:30:36]} fxe5 {[%emt 0:00:17]} 19. Bf5 {[%emt 0:10:28]} Nb6 {[%emt 0:06:36]} 20. Be3 {[%emt 0:03:05] aiming for Be6. A strong pair of Bishops.} ({Reject} 20. Nxe5 $6 Nxe5 21. Rxe5 Bd6 $11) 20... Bf6 {[%emt 0:12:10]} 21. Be6 {[%emt 0:07:10] White is much more active.} (21. Rea1 $142 {[%cal Oe3b6] Bxb6! is the strong threat.} Rad8 22. Rxa7) 21... Rae8 {[%emt 0:03:01]} 22. Bxf7+ {[%emt 0:03:26]} (22. Bg4 $16) 22... Rxf7 $14 {[%emt 0:00:15]} 23. b3 {[%emt 0:09:49]} Rfe7 {[%emt 0:08:26]} (23... Nc8 $11) 24. Rd1 {[%emt 0:03:07]} (24. Rxa7 $5 {[%cal Re3b6]} d4 25. cxd4 exd4 26. Bd2 $14) 24... d4 {[%emt 0:03:20]} 25. cxd4 {[%emt 0:00:04]} e4 {[%emt 0:00:14]} 26. Nd2 {[%emt 0:02:32]} Nd5 {[%emt 0:00:45]} 27. Rc2 {[%emt 0:00:17] Wards off Nc3} Nc7 {[%emt 0:03:26] [#]} (27... Rd7 $14) 28. b6 $1 {[%emt 0:01:57][%mdl 512]} axb6 {[%emt 0:00:56]} 29. Nc4 {[%emt 0:00:04]} ({White should play} 29. Nxe4 $1 $14 Nd5 30. Nxf6+ gxf6 31. Ra1) 29... Nd5 $11 {[%emt 0:00:56]} 30. Rcd2 {[%emt 0:02:00]} Rd8 {[%emt 0:01:51]} 31. Kf1 {[%emt 0:02:41]} (31. Rc2 $11) 31... b5 $17 {[%emt 0:03:01]} 32. Ne5 {[%emt 0:00:34]} Bxe5 {[%emt 0:01:08]} ({Black should try} 32... Rc7 $17 {Strongly threatening ...Rc3.} 33. Ng4 Rc3) 33. dxe5 $11 {[%emt 0:00:04]} Nxe3+ {[%emt 0:00:11]} 34. fxe3 $17 {[%emt 0:00:07][%mdl 4096] Endgame KRR-KRR} Rf8+ {[%emt 0:00:55]} 35. Kg1 {[%emt 0:00:28]} Rxe5 {[%emt 0:00:10]} 36. Rd8 {[%emt 0:00:45]} Rxd8 {[%emt 0:00:54]} 37. Rxd8+ $11 {[%emt 0:00:06] KR-KR} Kf7 {[%emt 0:00:07]} 38. Rd7+ {[%emt 0:00:04]} Re7 {[%emt 0:00:15]} 39. Rd5 {[%emt 0:00:05]} b6 {[%emt 0:01:04]} 40. Rxb5 {[%emt 0:00:04]} Re6 {[%emt 0:00:05]} 41. Kf2 {[%emt 0:31:12]} Ke7 {[%emt 0:31:06]} (41... Rf6+ $11 42. Kg1 Rc6) 42. Kg3 {[%emt 0:00:23]} h6 {[%emt 0:01:41]} (42... Rg6+ $14 43. Kh2 Kd7) 43. Kf4 $16 {[%emt 0:01:22] Hoping for Re5.} Kd7 {[%emt 0:03:02]} 44. g4 {[%emt 0:00:00]} g6 {[%emt 0:00:00] [#]} (44... Rg6 {might work better.} 45. Rd5+ (45. Kxe4 Ke7 $16) 45... Ke7 46. Kxe4 Rc6) 45. h4 $1 $18 {[%emt 0:00:00]} Rf6+ {[%emt 0:00:00]} 46. Kxe4 {[%emt 0:00:00]} Kc6 {[%emt 0:00:00]} 47. Re5 {[%emt 0:00:00]} Kd7 {[%emt 0:00:00]} 48. g5 {[%emt 0:00:00]} hxg5 {[%emt 0:00:00]} 49. Rxg5 {[%emt 0:00:00]} Kd6 {[%emt 0:00:00]} 50. Kd4 {[%emt 0:00:00]} Re6 $2 {[%emt 0:00:00]} (50... Ke7 51. Re5+ Kd7) 51. e4 {[%emt 0:00:00][%cal Be3e4,Be4e5][%mdl 32] White is clearly winning.} Kc6 {[%emt 0:00:00]} 52. e5 {[%emt 0:00:00] Repels Rf6} Kd7 {[%emt 0:00:00]} 53. Kd5 {[%emt 0:00:00]} Rc6 {[%emt 0:00:00]} 54. b4 {[%emt 0:00:00] Inhibits Rc5+.   Weighted Error Value: White=0.20 (precise) /Black=0.39} 1-0